[Event "1000GM Schev-A February 2024"]
[Site "Santa Clara"]
[Date "2024.02.17"]
[Round "1.1"]
[White "Arutla, Aditya"]
[Black "Jimenez Garcia, Emmanuel"]
[Result "0-1"]
[ECO "A40"]
[WhiteElo "2132"]
[BlackElo "2394"]
[Annotator "TA"]
[PlyCount "58"]
[EventDate "2024.02.13"]
[EventType "schev"]
[EventCountry "USA"]
[SourceTitle "playchess.com"]
[Source "ChessBase"]
[SourceQuality "1"]
[TimeControl "5400+30"]

{[%evp 12,58,62,20,33,31,33,12,11,14,12,-13,-15,-12,-11,-52,-34,-210,-60,-67,-68,-69,-59,-57,-64,-74,-53,-78,-58,-59,-66,-95,-106,-110,-103,-179,-224,-324,-334,-352,-355,-477,-472,-465,-475,-471,-447,-442,-366]} 1. e4 {[%emt 0:00:01]} c5 {[%emt 0:01:16]} 2. Nf3 {[%emt 0:00:16]} g6 {[%emt 0:00:12]} 3. c4 {[%emt 0:00:37]} Bg7 {[%emt 0:00:21]} 4. d4 {[%emt 0:00:10]} d6 {[%emt 0:02:32]} 5. d5 {[%emt 0:01:51]} e6 {[%emt 0:02:24]} 6. Be2 {[%emt 0:01:27]} exd5 {[%emt 0:01:00]} 7. exd5 {[%emt 0:00:26]} Ne7 {[%emt 0:04:33][%cal Bg8e7,Be7f5,Bf5d4][%mdl 32]} 8. O-O {[%emt 0:01:36]} O-O {[%emt 0:01:55]} 9. Re1 {[%emt 0:02:11]} Bg4 {[%emt 0:03:34] The position is equal.} 10. Nc3 {[%emt 0:04:04]} Nd7 {[%emt 0:01:10]} 11. Nd2 {[%emt 0:08:32]} Bxe2 {[%emt 0:00:28]} 12. Qxe2 {[%emt 0:00:47]} Nf5 {[%emt 0:00:43]} 13. Nde4 {[%emt 0:02:39]} Ne5 {[%emt 0:10:18]} 14. b3 $2 {[%emt 0:02:56] [#]} (14. Rb1 $15) 14... Re8 {[%emt 0:06:04]} (14... Nd4 $19 15. Qd1 f5) 15. Bf4 {[%emt 0:07:44]} Nd4 {[%emt 0:10:54]} 16. Qd1 {[%emt 0:00:42]} h6 {[%emt 0:16:36]} 17. Bxe5 {[%emt 0:11:32]} Rxe5 {[%emt 0:02:33]} 18. Qd3 {[%emt 0:01:37]} a6 $36 {[%emt 0:08:06][%mdl 2048] Black is pushing.} 19. Nd2 {[%emt 0:04:13]} Qa5 {[%emt 0:06:31][%cal Od4b3]} 20. Rxe5 {[%emt 0:09:09]} Bxe5 {[%emt 0:00:03]} 21. Re1 {[%emt 0:03:55]} b5 {[%emt 0:02:28][%cal Od4b3]} 22. Nde4 {[%emt 0:04:46]} bxc4 {[%emt 0:02:44]} 23. Qxc4 {[%emt 0:01:36] [#]} (23. bxc4 $17 {might work better.} f5 24. Nd2) 23... Nb5 $1 $19 {[%emt 0:01:50]} 24. Re3 {[%emt 0:16:09]} (24. Rc1 {only move.}) 24... f5 {[%emt 0:03:04]} 25. Qa4 {[%emt 0:10:37]} Qd8 {[%emt 0:03:49]} ({Worse is} 25... Bxc3 26. Nxc3 Qxa4 27. Nxa4 $11) 26. Nxb5 {[%emt 0:03:26]} axb5 {[%emt 0:00:18] Black is clearly winning.} 27. Qxb5 {[%emt 0:00:13][%cal Oe4c5]} fxe4 {[%emt 0:00:11]} 28. Qe2 {[%emt 0:00:46]} Qg5 {[%emt 0:02:53]} 29. g3 {[%emt 0:00:18]} Qf5 {[%emt 0:03:08] Weighted Error Value: White=0.37/Black=0.15 (very precise) .  Loses game:     	White=1     	---        Mistake:       	White=2     	Black=1      Inaccurate:     	White=3     	---        OK:         	White=4     	Black=10     Best:        	---       	Black=1      Strong:       	---       	Black=1} 0-1

[Event "1000GM Schev-A February 2024"]
[Site "Santa Clara"]
[Date "2024.02.17"]
[Round "1.2"]
[White "Sivakumar, Shaashwath"]
[Black "Martin Carmona, Gaston Manuel"]
[Result "0-1"]
[ECO "E11"]
[WhiteElo "2205"]
[BlackElo "2343"]
[Annotator "TA"]
[PlyCount "84"]
[EventDate "2024.02.13"]
[EventType "schev"]
[EventCountry "USA"]
[SourceTitle "playchess.com"]
[Source "ChessBase"]
[SourceQuality "1"]
[TimeControl "5400+30"]

{[%evp 23,84,0,0,0,5,-20,-9,-14,-12,-16,-10,-12,-11,-29,-27,-28,-11,-64,-63,-52,-56,-72,-34,-63,-22,-126,-116,-162,-164,-205,-193,-261,-254,-437,-442,-428,-436,-572,-535,-543,-427,-483,-465,-464,-332,-342,-340,-332,-315,-789,-753,-1527,-1372,-29978,-29979,-29979,-29980,-29980,-29981,-29981,-29982,-29982,-29981]} 1. d4 {[%emt 1:31:00]} Nf6 {[%emt 1:31:00]} 2. c4 {[%emt 0:00:00]} e6 {[%emt 0:00:00]} 3. g3 {[%emt 0:00:00]} Bb4+ {[%emt 0:00:00]} 4. Bd2 {[%emt 0:00:00]} Qe7 {[%emt 0:00:00]} 5. Nf3 {[%emt 0:00:00]} Nc6 {[%emt 0:00:00]} 6. Nc3 {[%emt 0:00:00]} Bxc3 {[%emt 0:00:00]} 7. Bxc3 {[%emt 0:00:00]} Ne4 {[%emt 0:00:00]} 8. Rc1 {[%emt 0:00:00]} O-O {[%emt 0:00:00]} 9. Bg2 {[%emt 0:00:00]} d6 {[%emt 0:00:00]} 10. O-O {[%emt 0:00:00]} Nxc3 {[%emt 0:00:00]} 11. Rxc3 {[%emt 0:00:00]} e5 {[%emt 0:00:00]} 12. d5 {[%emt 0:00:00]} Nb8 {[%emt 0:00:00]} 13. Ne1 {[%emt 0:00:00]} a5 {[%emt 0:00:00]} 14. c5 {[%emt 0:00:00]} Na6 {[%emt 0:00:00]} 15. cxd6 {[%emt 0:00:00] The position is equal.} cxd6 {[%emt 0:00:00]} 16. Nd3 {[%emt 0:00:00]} Bf5 {[%emt 0:00:00]} 17. e4 {[%emt 0:00:00]} Bd7 {[%emt 0:00:00]} 18. Qb3 {[%emt 0:00:00][%cal Ob3b6]} b5 $1 {[%emt 0:00:00]} 19. a3 {[%emt 0:00:00]} Rfb8 {[%emt 0:00:00]} 20. Rc2 {[%emt 0:00:00]} ({Better is} 20. Ra1 $11) 20... Qd8 $15 {[%emt 0:00:00]} 21. Rfc1 {[%emt 0:00:00]} b4 {[%emt 0:00:00] [#] ...a4 is the strong threat.} 22. axb4 {[%emt 0:00:00]} axb4 {[%emt 0:00:00]} 23. Bf1 {[%emt 0:01:14]} Qa5 {[%emt 0:00:00]} (23... Qe8 $5 24. Rc6 Bxc6 25. Rxc6 Rd8 $11) 24. Rc6 {[%emt 0:05:11] Black converts the advantage convincingly.} Bxc6 $17 {[%emt 0:00:00]} 25. Rxc6 {[%emt 0:00:22]} (25. dxc6 $17 Nc7 26. Ne1) 25... Rb6 $19 {[%emt 0:00:00]} 26. Qc4 {[%emt 0:03:08]} Rxc6 {[%emt 0:00:00]} 27. Qxc6 {[%emt 0:00:11]} (27. dxc6 $142 g6 28. h4) 27... Rd8 {[%emt 0:00:00]} 28. Bh3 $2 {[%emt 0:02:49]} (28. Qc4 {was necessary.}) 28... Nc5 {[%emt 0:00:00]} 29. Nxc5 {[%emt 0:00:28]} Qxc5 {[%emt 0:00:00][%mdl 4096] Endgame. KQR-KQB} (29... dxc5 $2 30. Bf1 $19) 30. Kg2 {[%emt 0:00:36]} g6 {[%emt 0:00:00]} 31. Bd7 {[%emt 0:00:30]} Kf8 {[%emt 0:00:00]} 32. h4 {[%emt 0:00:09]} b3 {[%emt 0:00:00]} 33. h5 {[%emt 0:00:07]} Qb4 {[%emt 0:00:00]} (33... gxh5 34. Qb7 Kg7 35. Bf5 $19) 34. Qc7 {[%emt 0:01:13]} Qb8 {[%emt 0:00:00]} (34... Qxe4+ 35. Kh2 Ra8 36. h6 Qxd5 37. Bc6 $17) 35. Qc6 {[%emt 0:00:08]} Kg7 {[%emt 0:00:00]} 36. Kg1 $2 {[%emt 0:00:35]} (36. Bg4) 36... Qb4 {[%emt 0:00:00] [#] Hoping for ...Qe1+.} 37. Qc7 {[%emt 0:00:42]} Ra8 {[%emt 0:00:00] ( -> ...Ra1+)} 38. Be6 {[%emt 0:00:26]} Qe1+ {[%emt 0:00:00] Black mates.} (38... Qxe4 39. Qxf7+ Kh6 40. Kh2 $17) 39. Kg2 {[%emt 0:00:36]} Qxe4+ {[%emt 0:00:00]} ({Weaker is} 39... gxh5 40. Qxf7+ Kh8 41. Qf6#) 40. Kh2 {[%emt 0:00:11]} Qf3 {[%emt 0:00:00]} (40... gxh5 $2 {perishes.} 41. Qxf7+ Kh6 42. Bf5 $18) 41. h6+ {[%emt 0:00:22]} Kxh6 {[%emt 0:00:00]} 42. Qc1+ {[%emt 0:00:23]} Kg7 {[%emt 0:00:00] Weighted Error Value: White=0.77/Black=0.25 (precise) .  Mistake:       	White=6     	---        Inaccurate:     	White=3     	Black=2      OK:         	White=3     	Black=9      Best:        	---       	Black=1      Strong:       	---       	Black=1} 0-1

[Event "1000GM Schev-A February 2024"]
[Site "Santa Clara"]
[Date "2024.02.17"]
[Round "1.3"]
[White "Zhou, Ruoyu"]
[Black "Arenas, David"]
[Result "0-1"]
[ECO "B72"]
[WhiteElo "2112"]
[BlackElo "2406"]
[Annotator "TA"]
[PlyCount "70"]
[EventDate "2024.02.13"]
[EventType "schev"]
[EventCountry "USA"]
[SourceTitle "playchess.com"]
[Source "ChessBase"]
[SourceQuality "1"]
[TimeControl "5400+30"]

{[%evp 11,70,41,57,47,59,44,41,16,27,15,15,0,62,0,0,0,0,-27,0,0,13,0,22,10,22,0,0,0,0,0,0,0,0,-66,22,0,0,-112,-124,-153,-152,-203,-200,-195,-97,-44,-59,-87,-72,-120,-108,-1132,-1125,-1217,-1211,-1229,-1215,-1048,-1186,-1203,-1139]} 1. e4 {[%emt 0:00:12]} c5 {[%emt 0:00:45]} 2. Nf3 {[%emt 0:00:12]} d6 {[%emt 0:00:08]} 3. d4 {[%emt 0:00:11]} Nf6 {[%emt 0:00:10]} 4. Nc3 {[%emt 0:00:11]} cxd4 {[%emt 0:00:09]} 5. Nxd4 {[%emt 0:00:10]} g6 {[%emt 0:00:12]} 6. Be3 {[%emt 0:00:12]} a6 {[%emt 0:00:08]} 7. f3 {[%emt 0:00:36]} b5 {[%emt 0:01:01]} 8. Qd2 {[%emt 0:07:55]} Bb7 {[%emt 0:00:05]} 9. O-O-O {[%emt 0:08:03] White is slightly better.} h5 {[%emt 0:00:14]} 10. Nb3 {[%emt 0:09:07][%cal Oe4e5] Threatens to win with e5!} Nbd7 {[%emt 0:00:24]} 11. Be2 {[%emt 0:05:13]} Rc8 {[%emt 0:02:00]} ({Black should try} 11... Bg7 $11) 12. Kb1 {[%emt 0:05:24]} (12. a4 $1 $14) 12... Bg7 $11 {[%emt 0:00:46]} 13. h3 {[%emt 0:02:55]} Qc7 {[%emt 0:03:47]} 14. Rc1 {[%emt 0:16:08]} h4 {[%emt 0:10:56]} 15. Rhe1 {[%emt 0:06:43]} Kf8 {[%emt 0:04:37]} 16. a3 {[%emt 0:09:11]} Nb6 {[%emt 0:04:31]} 17. Rcd1 {[%emt 0:06:57]} Ba8 {[%emt 0:06:52]} 18. Bd3 {[%emt 0:03:02]} Nc4 {[%emt 0:01:47]} 19. Bxc4 {[%emt 0:01:23]} bxc4 {[%emt 0:00:09]} 20. Nd4 {[%emt 0:00:21]} Rb8 {[%emt 0:00:17]} 21. Ka2 {[%emt 0:01:30]} Rh5 {[%emt 0:02:18]} 22. Rb1 {[%emt 0:03:51]} (22. b4 $11) 22... Ra5 {[%emt 0:04:16]} (22... d5 $15 23. e5 Rxe5) 23. Nde2 {[%emt 0:04:07]} Kg8 {[%emt 0:02:50]} 24. Bd4 {[%emt 0:01:58]} (24. b4 $11 cxb3+ 25. cxb3) 24... e5 $17 {[%emt 0:01:07]} 25. Be3 {[%emt 0:02:43]} d5 {[%emt 0:00:18]} 26. exd5 {[%emt 0:01:19]} (26. Red1 $17 {keeps fighting.}) 26... Nxd5 $19 {[%emt 0:01:48]} 27. Nxd5 {[%emt 0:01:11]} Bxd5 {[%emt 0:00:10]} (27... Rxd5 $19 28. Qc1 f6) 28. Nc3 $17 {[%emt 0:00:39]} Be6 {[%emt 0:01:41]} 29. Red1 {[%emt 0:00:49] [#]} (29. Bg5 Qc5 30. Ra1 (30. Bxh4 $2 {is a self mate.} Rxb2+ 31. Rxb2 Qxa3+ 32. Kb1 Qa1#) 30... Qb4 $19) 29... Bf8 $1 {[%emt 0:00:07] And now ...Qe7 would win.} 30. Qc1 {[%emt 0:03:17]} (30. Bh6 $142) 30... Qe7 $40 {[%emt 0:01:21][%cal Ob8b2][%mdl 128] ( -> ...Rxb2+!). White is in trouble. Black is more active.} 31. Ka1 {[%emt 0:00:00][%mdl 8192] [#] This move loses the game for White.} (31. Ra1 $17) 31... Rxb2 $3 $19 {[%emt 0:01:54][%mdl 512] Black is clearly winning.} 32. Qxb2 {[%emt 0:00:22]} (32. Rxb2 Qxa3+) 32... Rxa3+ {[%emt 0:00:05]} (32... Qxa3+ $2 {perishes.} 33. Qxa3 Rxa3+ 34. Kb2 $18) 33. Qa2 {[%emt 0:00:19]} Rxa2+ {[%emt 0:01:15]} 34. Nxa2 {[%emt 0:00:10] [#]} c3 $1 {[%emt 0:00:01][%mdl 512]} 35. Bc1 {[%emt 0:00:51] Wards off Qa3} Qc7 {[%emt 0:00:02] Weighted Error Value: White=0.40/Black=0.15 (very precise) .  Loses game:     	White=1     	---        Mistake:       	White=5     	Black=3      Inaccurate:     	White=2     	Black=1      OK:         	White=1     	Black=10     Best:        	White=1     	Black=2      Strong:       	---       	Black=1      Brilliant:      	---       	Black=1} 0-1

[Event "1000GM Schev-A February 2024"]
[Site "Santa Clara"]
[Date "2024.02.17"]
[Round "1.4"]
[White "Zuluaga Mancilla, Cesar"]
[Black "Rajaram, Rohan"]
[Result "0-1"]
[ECO "D23"]
[WhiteElo "2251"]
[BlackElo "2151"]
[Annotator "TA"]
[PlyCount "110"]
[EventDate "2024.02.13"]
[EventType "schev"]
[EventCountry "USA"]
[SourceTitle "playchess.com"]
[Source "ChessBase"]
[SourceQuality "1"]
[TimeControl "5400+30"]

{[%evp 20,110,0,-18,21,12,24,0,18,18,27,22,15,25,43,38,32,31,24,25,97,97,95,91,122,104,104,109,120,143,138,127,91,16,16,17,17,37,25,50,72,12,111,83,89,66,63,0,0,0,0,0,14,22,74,-25,0,0,2,0,0,-391,-403,-472,-485,-483,-444,-485,-482,-473,-474,-494,-494,-546,-539,-637,-637,-676,-649,-838,-561,-735,-735,-1309,-639,-1752,-1641,-29978,-29978,-29976,-29976,-29971,-29972]} 1. d4 {[%emt 0:04:11]} d5 {[%emt 0:00:04]} 2. Nf3 {[%emt 0:00:13]} Nf6 {[%emt 0:00:06]} 3. c4 {[%emt 0:00:34]} c6 {[%emt 0:00:06]} 4. Qb3 {[%emt 0:01:17]} dxc4 {[%emt 0:00:29]} 5. Qxc4 {[%emt 0:00:08]} Bf5 {[%emt 0:00:05]} 6. Nc3 {[%emt 0:01:10]} e6 {[%emt 0:00:23]} 7. e3 {[%emt 0:01:51] D23: Angenommenes Damengambit.} Be7 {[%emt 0:00:49]} 8. a3 {[%emt 0:03:15]} O-O {[%emt 0:01:27]} 9. Be2 {[%emt 0:01:10]} Nbd7 {[%emt 0:01:06]} 10. O-O {[%emt 0:00:28]} Rc8 {[%emt 0:02:18]} 11. b4 {[%emt 0:01:18]} Ne4 $146 {[%emt 0:05:45]} ({Predecessor:} 11... Qc7 12. Bb2 Bd6 13. Rac1 e5 14. dxe5 Nxe5 15. Nxe5 Bxe5 16. f4 Bd6 17. e4 Be6 18. Qd3 Bxf4 19. Nd5 Bxd5 20. exd5 Bxc1 21. Rxc1 Nxd5 22. Kh1 f5 {½-½ Steyn,H (1820)-Bouah,D (1778) Johannesburg PSS Prestige op rapid 2017 (10)}) 12. Bb2 {[%emt 0:01:28]} Ndf6 {[%emt 0:01:20]} 13. h3 {[%emt 0:01:21]} Qc7 {[%emt 0:02:38]} 14. Rfc1 {[%emt 0:01:03]} Qb8 {[%emt 0:02:15]} 15. Qb3 {[%emt 0:06:01]} (15. Nxe4 {vereinfacht} Bxe4 16. Qc3 Rfd8 17. Ne5) 15... Rfd8 {[%emt 0:03:32]} 16. a4 {[%emt 0:03:58]} Nxc3 {[%emt 0:08:45]} 17. Bxc3 {[%emt 0:00:09]} Ne4 {[%emt 0:01:08]} 18. Be1 {[%emt 0:00:46]} h6 {[%emt 0:01:32]} 19. Ne5 {[%emt 0:02:15]} Bf6 {[%emt 0:08:50]} (19... Bd6 $11 {bleibt in der Remisbreite.}) 20. f3 $16 {[%emt 0:02:20]} Nd6 {[%emt 0:02:44]} 21. Bg3 {[%emt 0:02:50]} Qa8 {[%emt 0:02:29]} 22. Rd1 {[%emt 0:04:34]} Bh7 {[%emt 0:02:45]} 23. e4 {[%emt 0:00:23]} a5 {[%emt 0:03:58]} 24. Ng4 {[%emt 0:04:15]} Nxe4 {[%emt 0:05:04]} 25. fxe4 {[%emt 0:00:38]} Bxd4+ {[%emt 0:00:37]} 26. Nf2 {[%emt 0:06:11]} (26. Kh2 $16) 26... Bxa1 {[%emt 0:00:11]} 27. Rxa1 {[%emt 0:00:06]} Qa7 {[%emt 0:06:25]} 28. bxa5 {[%emt 0:10:46]} Qxa5 {[%emt 0:01:20]} (28... Bxe4 $2 29. Qb6 Qxb6 30. axb6 $18) 29. Bf4 {[%emt 0:04:04]} (29. Qxb7 $2 Qc3 30. Rf1 Qxg3 $19) 29... b5 {[%emt 0:05:59]} 30. Qg3 {[%emt 0:02:10]} (30. axb5 $2 Qxa1+ 31. Kh2 cxb5 $19) ({Besser ist} 30. Be5 $16 {[%cal Ra4b5]} b4 (30... bxa4 31. Qg3 $16) 31. Qg3) 30... Bg6 {[%emt 0:02:31]} (30... Kh8 $1 $11) 31. Be5 {[%emt 0:08:08]} Qd2 {[%emt 0:04:09]} ({Doch nicht} 31... bxa4 32. h4 Rd2 33. Bc3 $16) 32. Bh5 {[%emt 0:00:58]} Kh7 {[%emt 0:00:10]} 33. axb5 {[%emt 0:01:56]} (33. a5 $14) 33... cxb5 $11 {[%emt 0:00:09]} 34. Bxg6+ {[%emt 0:04:01]} fxg6 {[%emt 0:00:07]} 35. Kh2 {[%emt 0:07:01]} b4 {[%emt 0:26:44]} 36. Ra7 {[%emt 0:08:12]} Rd7 {[%emt 0:00:00]} 37. Ra6 {[%emt 0:03:17]} (37. Bf4 $16 Qd4 38. Be3 Qxa7 39. Bxa7 Rxa7 40. Nd3) 37... Re8 {[%emt 0:00:00]} 38. Rb6 {[%emt 0:01:40]} Qe1 {[%emt 0:00:00]} 39. Qf3 {[%emt 0:00:46]} (39. Ng4 {vereinfacht} Qxg3+ 40. Bxg3 Ra8 41. Rxb4 Ra2 42. h4) 39... Qc1 {[%emt 0:00:00]} 40. Rxb4 $2 {[%emt 0:00:44][%mdl 8192] [#]} (40. Nd3 $11 {und Weiss steht sicher.} Qc4 41. Nf4 (41. Rxb4 $2 {verliert.} Qxd3 42. Qxd3 Rxd3 $19) (41. Nxb4 $2 Qc5 $19)) 40... Qc5 $1 $19 {[%emt 0:00:00]} 41. Bc3 {[%emt 0:02:10]} Rf8 {[%emt 0:00:00]} 42. Nd3 {[%emt 0:00:28]} Qc7+ {[%emt 0:00:00]} (42... Qxc3 43. Qxf8 Rxd3 44. Qb8 $19) 43. Be5 {[%emt 0:00:40]} Rxf3 {[%emt 0:00:00]} 44. Bxc7 {[%emt 0:00:08]} Rfxd3 {[%emt 0:00:00]} 45. Be5 {[%emt 0:00:08]} g5 {[%emt 0:00:00]} 46. Ra4 {[%emt 0:01:45]} Re3 {[%emt 0:00:00]} 47. Kg1 {[%emt 0:00:22]} Re2 {[%emt 0:00:00]} 48. Kf1 {[%emt 0:00:41]} Rc2 {[%emt 0:00:00]} 49. Kg1 {[%emt 0:00:04]} Rd1+ {[%emt 0:00:00]} 50. Kh2 {[%emt 0:00:06]} Rdd2 {[%emt 0:00:00]} 51. Ra7 {[%emt 0:00:07]} Rxg2+ {[%emt 0:00:00]} 52. Kh1 {[%emt 0:00:03]} Kg6 {[%emt 0:00:00]} 53. Rxg7+ {[%emt 0:00:53]} Kh5 {[%emt 0:00:00]} 54. Rf7 {[%emt 0:01:18]} Rge2 {[%emt 0:00:00]} 55. Rf1 {[%emt 0:00:18]} Kh4 {[%emt 0:00:00]} 0-1

[Event "1000GM Schev-A February 2024"]
[Site "Santa Clara"]
[Date "2024.02.17"]
[Round "1.5"]
[White "Dominguez Aguilar, Guillermo"]
[Black "Sivakumar, Shaaketh"]
[Result "1/2-1/2"]
[ECO "A40"]
[WhiteElo "2319"]
[BlackElo "2364"]
[Annotator "RC"]
[PlyCount "45"]
[EventDate "2024.02.13"]
[EventType "schev"]
[EventCountry "USA"]
[SourceTitle "playchess.com"]
[Source "ChessBase"]
[SourceQuality "1"]
[TimeControl "5400+30"]

1. c4 {[%emt 0:00:38]} b6 {[%emt 0:00:39]} 2. Nc3 {[%emt 0:00:13]} Bb7 {[%emt 0:00:17]} 3. d4 {[%emt 0:00:18]} e6 {[%emt 0:00:08]} 4. a3 {[%emt 0:00:11]} f5 {[%emt 0:00:30]} 5. Nf3 {[%emt 0:00:13]} Nf6 {[%emt 0:00:19]} 6. e3 {[%emt 0:12:14]} g6 {[%emt 0:02:54]} 7. Bd3 {[%emt 0:00:28]} Bg7 {[%emt 0:00:39]} 8. b4 {[%emt 0:08:17]} O-O {[%emt 0:03:17]} 9. Rb1 {[%emt 0:03:36]} Ne4 {[%emt 0:07:08]} 10. Bxe4 {[%emt 0:03:15]} fxe4 {[%emt 0:00:10]} 11. Nd2 {[%emt 0:00:36]} d5 {[%emt 0:07:33]} 12. Qg4 {[%emt 0:05:52]} Rf5 {[%emt 0:01:04]} 13. Ne2 {[%emt 0:03:30]} Qf6 {[%emt 0:07:39]} 14. O-O {[%emt 0:01:29]} h5 {[%emt 0:21:05]} 15. Qh3 {[%emt 0:03:32]} Qf7 {[%emt 0:06:38]} 16. Ng3 {[%emt 0:04:31]} Rf6 {[%emt 0:00:25]} 17. Bb2 {[%emt 0:00:53]} Nd7 {[%emt 0:01:55]} 18. Rbc1 {[%emt 0:04:22]} Rc8 {[%emt 0:04:39]} 19. b5 {[%emt 0:45:52]} Qe7 {[%emt 0:04:38]} 20. Rc2 {[%emt 0:00:00]} c6 {[%emt 0:01:47]} 21. Rfc1 {[%emt 0:00:00]} Bh6 {[%emt 0:00:59]} 22. Ngf1 {[%emt 0:00:00]} Qf7 {[%emt 0:04:00]} 23. Qg3 {[%emt 0:00:00]} 1/2-1/2

[Event "1000GM Schev-A February 2024"]
[Site "Santa Clara"]
[Date "2024.02.18"]
[Round "2.1"]
[White "Martin Carmona, Gaston Manuel"]
[Black "Arutla, Aditya"]
[Result "1/2-1/2"]
[ECO "A49"]
[WhiteElo "2343"]
[BlackElo "2132"]
[Annotator "TA"]
[PlyCount "116"]
[EventDate "2024.02.13"]
[EventType "schev"]
[EventCountry "USA"]
[SourceTitle "playchess.com"]
[Source "ChessBase"]
[SourceQuality "1"]
[TimeControl "5400+30"]

{[%evp 21,116,0,0,0,0,0,0,-13,0,0,25,21,100,99,104,91,94,82,109,97,177,113,116,133,124,108,131,79,85,82,180,179,175,102,106,112,111,103,104,95,110,75,75,70,68,80,73,10,17,17,17,0,20,5,6,6,6,-8,-8,-8,-8,-8,-8,-52,-60,-77,0,0,0,0,0,0,0,0,0,0,0,0,0,0,0,0,0,0,0,0,0,0,0,0,0,0,0,0,0,0,0]} 1. Nf3 {[%emt 0:06:06]} d5 {[%emt 0:00:24]} 2. g3 {[%emt 0:00:05]} g6 {[%emt 0:00:29]} 3. Bg2 {[%emt 0:00:33]} Bg7 {[%emt 0:00:11]} 4. d4 {[%emt 0:00:35]} Nf6 {[%emt 0:00:36]} 5. c4 {[%emt 0:01:19]} c6 {[%emt 0:00:55]} 6. Nc3 {[%emt 0:01:01]} O-O {[%emt 0:01:03]} 7. O-O {[%emt 0:00:16]} b6 {[%emt 0:04:07]} 8. cxd5 {[%emt 0:01:38]} cxd5 {[%emt 0:01:27]} 9. Ne5 {[%emt 0:01:34]} Bb7 {[%emt 0:01:01]} 10. Qb3 {[%emt 0:03:11]} Nc6 {[%emt 0:04:42]} 11. Rd1 {[%emt 0:00:48]} (11. Nxd5 $2 Na5 (11... Nxd4 12. Qc4 $17) 12. Nxe7+ Qxe7 $19) 11... e6 {[%emt 0:01:02]} 12. Bf4 {[%emt 0:03:17]} Nh5 {[%emt 0:04:33]} 13. Nxc6 {[%emt 0:00:58]} Bxc6 {[%emt 0:00:07]} 14. Be3 {[%emt 0:00:06]} Qd7 {[%emt 0:01:07]} 15. a4 {[%emt 0:11:30]} a5 {[%emt 0:04:34]} 16. Bf3 {[%emt 0:01:24]} (16. Qxb6 $2 Rfb8 17. Nxd5 (17. Qc5 $2 Bf8 $19) 17... Bxd5 $19) 16... Rab8 {[%emt 0:04:11]} (16... Nf6 $11) 17. Bxh5 $16 {[%emt 0:07:28]} gxh5 {[%emt 0:00:08]} 18. Bf4 {[%emt 0:00:05]} Rb7 {[%emt 0:01:59] [#]} 19. Nb5 $1 {[%emt 0:00:16]} f6 {[%emt 0:08:42]} 20. Rac1 {[%emt 0:05:12]} Kh8 {[%emt 0:05:59] [#]} (20... e5 $16) 21. Rc3 {[%emt 0:02:48]} (21. Qe3 $1 $18) 21... e5 $16 {[%emt 0:04:55]} 22. Be3 {[%emt 0:00:05]} h4 {[%emt 0:07:16]} 23. Rdc1 {[%emt 0:01:19]} (23. gxh4 $6 Rg8 (23... Qg4+ 24. Kf1 $16) 24. Bd2 Qg4+ 25. Rg3 Qxe2 $11) 23... Bxb5 {[%emt 0:00:35]} (23... Rc8 $2 24. Qc2 $18 (24. gxh4 Bf8 $11)) 24. Qxb5 {[%emt 0:03:50]} (24. axb5 $142 Qg4 25. Qxd5) 24... hxg3 {[%emt 0:03:35]} 25. hxg3 {[%emt 0:00:02]} f5 {[%emt 0:14:29]} (25... Qxb5 $16 {was called for.} 26. axb5 f5 27. dxe5 Bxe5) 26. Qxd7 $18 {[%emt 0:00:57]} Rxd7 {[%emt 0:00:15]} 27. dxe5 {[%emt 0:01:31]} (27. Rc8 $18 {Black must now prevent dxe5.} Kg8 28. Rxf8+ Bxf8 29. Rc8 (29. dxe5 d4 $18)) 27... d4 $16 {[%emt 0:04:18]} 28. Rd3 {[%emt 0:00:09]} Bxe5 {[%emt 0:00:13]} (28... dxe3 $2 29. Rxd7 exf2+ 30. Kxf2 Bxe5 31. Rc6 $18) 29. Rc4 {[%emt 0:02:06]} Rfd8 {[%emt 0:02:08]} 30. Bc1 {[%emt 0:01:23]} Kg7 {[%emt 0:07:41]} 31. b3 {[%emt 0:00:25]} Kf7 {[%emt 0:13:18]} 32. Kg2 {[%emt 0:01:37]} Rc7 {[%emt 0:00:00]} 33. Rxc7+ {[%emt 0:01:15]} Bxc7 {[%emt 0:00:00]} 34. Bb2 {[%emt 0:00:08]} ({Better is} 34. Kf3 $16) 34... Be5 $11 {[%emt 0:00:00]} 35. Kf3 {[%emt 0:00:28]} (35. e3 $2 dxe3 36. Rxd8 e2 37. Bxe5 (37. Rd7+ $2 Ke6 $19) (37. Bc3 $2 Bxc3 38. Rd7+ Ke8 $19) 37... e1=Q $19 (37... e1=B $2 38. Bc7 $18)) 35... Rd6 {[%emt 0:00:00]} 36. Kg2 {[%emt 0:02:29]} Rd8 $1 {[%emt 0:00:00]} 37. f4 {[%emt 0:00:45]} (37. e3 $2 dxe3 38. Rxd8 e2 39. Bxe5 (39. Rd7+ $2 Ke6 $19) (39. Bc3 $2 Bxc3 40. Rd5 e1=Q $19) 39... e1=Q $19 (39... e1=B $2 40. Rd6 $18)) 37... Bf6 {[%emt 0:00:00]} 38. Kf3 {[%emt 0:00:02]} Ke6 {[%emt 0:00:00]} 39. g4 {[%emt 0:04:57]} fxg4+ {[%emt 0:01:44]} 40. Kxg4 {[%emt 0:00:03]} h5+ {[%emt 0:00:18]} 41. Kf3 $1 {[%emt 0:00:50]} (41. Kxh5 $2 {loses.} Kf5 42. e4+ Kxe4 $19 (42... Kxf4 $2 43. Rd1 $19)) 41... Kf5 {[%emt 0:00:18]} 42. Rd1 {[%emt 0:00:15]} h4 {[%emt 0:03:10]} 43. Rh1 {[%emt 0:06:24]} Rg8 {[%emt 0:00:00]} (43... Re8 $17 {Threatens to win with ...Re3+.} 44. Bc1 Rg8 45. e4+ dxe3 46. Bxe3 Rg3+ 47. Kf2 Kg4) 44. e4+ $11 {[%emt 0:05:09]} dxe3 $1 {[%emt 0:00:00]} 45. Bxf6 {[%emt 0:00:02]} Rg3+ {[%emt 0:00:32]} 46. Ke2 {[%emt 0:00:02]} Kxf6 {[%emt 0:00:19]} 47. Rxh4 {[%emt 0:00:02]} Kf5 {[%emt 0:00:23]} 48. Rh6 {[%emt 0:04:22]} Ke4 {[%emt 0:01:02]} 49. Re6+ {[%emt 0:00:41]} Kxf4 {[%emt 0:00:09]} 50. Rxb6 {[%emt 0:01:43]} Rg2+ {[%emt 0:00:11]} 51. Ke1 {[%emt 0:00:01]} Kf3 {[%emt 0:01:54]} 52. Rf6+ {[%emt 0:00:03]} Ke4 {[%emt 0:00:00]} 53. Ra6 {[%emt 0:00:45]} Kd3 {[%emt 0:00:00]} 54. Rd6+ {[%emt 0:00:13]} Kc3 {[%emt 0:00:26]} 55. Rd5 {[%emt 0:00:29]} Kxb3 {[%emt 0:00:53]} 56. Rxa5 {[%emt 0:00:05]} Ra2 {[%emt 0:00:28]} 57. Re5 {[%emt 0:00:07]} Kxa4 {[%emt 0:00:10]} 58. Re4+ {[%emt 0:00:07]} Kb5 {[%emt 0:00:06]} 1/2-1/2